lending/lending_fUSD_20260110
["ID","MTS","AMOUNT","RATE_DAILY","PERIOD"]
[401257004,1768079074763,-294.86,0.0004,120]
[401257005,1768079075042,-16958.77,0.0004,120]
[401257006,1768079075099,-22499.99,0.0004,120]
[401257007,1768079075156,-594.37,0.0004,120]
[401257008,1768079075213,-1035.54,0.0004,120]
[401257009,1768079075272,-604.15,0.0004,120]
[401257010,1768079075331,-253.0,0.0004,30]
[401257011,1768079075391,-2323.59,0.0004,120]
[401257012,1768079075448,-1019.71624,0.00040088,30]
[401257013,1768079075503,-1536.04,0.00040111,120]
[401257014,1768079075559,-2036.98,0.00040137,30]
[401257015,1768079075614,-2036.98,0.00040137,30]
[401257016,1768079075667,-1019.71624,0.00040288,30]
[401257017,1768079075716,-1000.0,0.000403,120]
[401257018,1768079075764,-503.44,0.0004032,120]
[401257019,1768079075815,-300.0,0.00040356,120]
[401257020,1768079075864,-300.0,0.00040356,120]
[401257021,1768079075915,-300.0,0.00040356,120]
[401257022,1768079075966,-300.0,0.00040356,120]
[401257023,1768079076020,-1629.62,0.00040375,120]
[401257024,1768079076073,-22500.0,0.00040375,120]
[401257025,1768079076125,-300.0,0.00040384,120]
[401257026,1768079076185,-300.0,0.00040411,120]
[401257027,1768079076239,-2036.98,0.00040411,30]
[401257028,1768079076296,-2036.98,0.00040411,30]
[401257029,1768079076355,-1019.71624,0.00040488,30]
[401257030,1768079076412,-250.0,0.000405,45]
[401257031,1768079076466,-250.0,0.000405,45]
[401257032,1768079076515,-250.0,0.000405,45]
[401257033,1768079076565,-250.0,0.000405,45]
[401257034,1768079076615,-250.0,0.000405,45]
[401257035,1768079076665,-250.0,0.000405,45]
[401257036,1768079076714,-250.0,0.000405,45]
[401257037,1768079076766,-250.0,0.000405,45]
[401257038,1768079076815,-250.0,0.000405,45]
[401257039,1768079076864,-250.0,0.000405,45]
[401257040,1768079076915,-250.0,0.000405,45]
[401257041,1768079076966,-250.0,0.000405,45]
[401257042,1768079077020,-250.0,0.000405,45]
[401257043,1768079077077,-250.0,0.000405,45]
[401257044,1768079077133,-250.0,0.000405,45]
[401257045,1768079077192,-250.0,0.000405,45]
[401257046,1768079077247,-502.19919316,0.000405,120]
[401257047,1768079077306,-600.0,0.000405,120]
[401257048,1768079077364,-56412.39447246,0.000405,120]
[401257049,1768079077421,-1431.0774415,0.00040507,30]
[401257050,1768079077478,-1100.0,0.00040548,120]
[401257051,1768079077533,-157.17,0.00040565,120]
[401257052,1768079077582,-152.0,0.000406,120]
[401257053,1768079077632,-157.17,0.00040665,120]
[401257054,1768079077682,-2036.98,0.00040685,30]
[401257055,1768079077732,-2036.98,0.00040685,30]
[401257056,1768079077785,-1019.71624,0.00040688,30]
[401257057,1768079077840,-619.03771377,0.000407,120]
[401257058,1768079077897,-152.0,0.000407,120]
[401257059,1768079077951,-6440.0,0.000407,117]
[401257060,1768079078006,-153.53,0.0004073,120]
[401257061,1768079078061,-160.38,0.0004074,120]
[401257062,1768079078118,-20609.29,0.0004075,120]
[401257063,1768079078175,-172.45,0.00040755,120]
[401257064,1768079078236,-153.76,0.00040762,120]
[401257065,1768079078294,-157.17,0.00040765,120]
[401257066,1768079078353,-1444.0,0.00040767,120]
[401257067,1768079078412,-155.76859237,0.00040772,120]
[401257068,1768079078469,-177.62026115,0.000408,60]
[401257069,1768079078526,-40150.63658501,0.000408,120]
[401257070,1768079078581,-300.102244,0.00040807,102]
[401257071,1768079078638,-153.53,0.0004083,120]
[401257072,1768079078695,-160.38,0.0004084,120]
[401257073,1768079078749,-172.46955886,0.00040855,120]
[401257074,1768079078802,-153.76,0.00040862,120]
[401257075,1768079078854,-157.17,0.00040865,120]
[401257076,1768079078904,-156.49,0.00040877,120]
[401257077,1768079078954,-3588.99,0.0004088,90]
[401257078,1768079079005,-1019.71624,0.00040888,30]
[401257079,1768079079059,-2000.0,0.000409,60]
[401257080,1768079079111,-500.0,0.000409,120]
[401257081,1768079079163,-162.85644084,0.000409,120]
[401257082,1768079079220,-4207.53384387,0.000409,120]
[401257083,1768079079279,-378.37,0.000409,60]
[401257084,1768079079339,-153.53,0.0004093,120]
[401257085,1768079079397,-204.0,0.0004093,30]
[401257086,1768079079458,-160.38,0.0004094,120]
[401257087,1768079079517,-2036.98,0.00040959,30]
[401257088,1768079079574,-2036.98,0.00040959,30]
[401257089,1768079079629,-157.17,0.00040965,120]
[401257090,1768079079681,-156.49,0.00040977,120]
[401257091,1768079079733,-50000.0,0.00041,41]
[401257092,1768079079780,-1000.0,0.00041,120]
[401257093,1768079079826,-8707.63562211,0.00041,30]
[401257094,1768079079876,-174.98522185,0.00041,120]
[401257095,1768079079928,-2186.3397992,0.00041,120]
[401257096,1768079079983,-520.36234562,0.00041,30]
[401257097,1768079080033,-7424.4611288,0.00041,30]
[401257098,1768079080085,-500.0,0.00041,120]
[401257099,1768079080327,-292.0,0.00041,120]
[401257100,1768079080385,-574.56727098,0.00041,30]
[401257101,1768079080443,-35723.83121526,0.00041,120]
[401257102,1768079080500,-493106.23662766,0.00041,30]
[401257103,1768079080557,-1003.1561347,0.00041,120]
[401257104,1768079080612,-18275.54858424,0.00041,120]
[401257105,1768079080663,-162.0,0.00041,120]
[401257106,1768079080713,-678.39938048,0.00041,30]
[401257107,1768079080759,-2481.41667933,0.00041,120]
[401257108,1768079080803,-5017.21197546,0.00041,60]
[401257109,1768079080850,-376.0,0.00041,120]
[401257110,1768079080897,-1966.71046288,0.00041,35]
[401257111,1768079080952,-6810.0,0.00041,120]
[401257112,1768079081016,-56667.73653626,0.00041,30]
[401257113,1768079081068,-651.82,0.00041,120]
[401257114,1768079081118,-19223.31397341,0.00041,30]
[401257115,1768079081165,-550.27236321,0.00041,30]
[401257116,1768079081216,-235.77666368,0.00041,120]
[401257117,1768079081271,-3335.17343359,0.00041,120]
[401257118,1768079081330,-282.0,0.00041,120]
[401257119,1768079081385,-22707.0,0.00041,120]
[401257120,1768079081441,-613.69350385,0.00041,30]
[401257121,1768079081497,-2396.25624166,0.00041,30]
[401257122,1768079081553,-5000.0,0.00041,120]
[401257123,1768079081602,-600.0,0.00041,120]
[401257124,1768079081651,-600.0,0.00041,120]
[401257125,1768079081700,-600.0,0.00041,120]
[401257126,1768079081749,-1594.0,0.00041,30]
[401257127,1768079081799,-743.0,0.00041,120]
[401257128,1768079081848,-253.0,0.00041,34]
[401257129,1768079081899,-153.53,0.0004103,120]
[401257130,1768079081949,-160.38,0.0004104,120]
[401257131,1768079082000,-503.44,0.0004104,120]
[401257132,1768079082056,-153.76,0.00041062,120]
[401257133,1768079082117,-157.17,0.00041065,120]
[401257134,1768079082175,-156.49,0.00041077,120]
[401257135,1768079082233,-1019.71624,0.00041088,30]
[401257136,1768079082293,-3000.0,0.00041093,60]
[401257137,1768079082353,-1300.0,0.00041093,60]
[401257138,1768079082412,-191.44978487,0.00041095,120]
[401257139,1768079082469,-2323.59,0.00041095,120]
[401257140,1768079082523,-1000.0,0.00041096,30]
[401257141,1768079082579,-1794.72,0.00041096,120]
[401257142,1768079082633,-1234.19,0.00041096,120]
[401257143,1768079082688,-2000.0,0.00041096,120]
[401257144,1768079082741,-234.0,0.00041096,120]
[401257145,1768079082792,-478.356493,0.00041096,120]
[401257146,1768079082844,-478.356493,0.00041096,120]
[401257147,1768079082893,-478.356493,0.00041096,120]
[401257148,1768079082940,-478.356493,0.00041096,120]
[401257149,1768079082991,-478.356493,0.00041096,120]
[401257150,1768079083039,-478.356493,0.00041096,120]
[401257151,1768079083091,-478.356493,0.00041096,120]
[401257152,1768079083146,-478.356493,0.00041096,120]
[401257153,1768079083199,-478.356493,0.00041096,120]
[401257154,1768079083254,-478.356493,0.00041096,120]
[401257155,1768079083311,-478.356493,0.00041096,120]
[401257156,1768079083369,-478.356493,0.00041096,120]
[401257157,1768079083425,-478.356493,0.00041096,120]
[401257158,1768079083497,-478.356493,0.00041096,120]
[401257159,1768079083551,-478.356493,0.00041096,120]
[401257160,1768079083605,-478.356493,0.00041096,120]
[401257161,1768079083657,-478.356493,0.00041096,120]
[401257162,1768079083710,-478.356493,0.00041096,120]
[401257163,1768079083765,-478.356493,0.00041096,120]
[401257164,1768079083819,-478.356502,0.00041096,120]
[401257165,1768079083873,-2000.0,0.00041096,120]
[401257166,1768079083924,-2000.0,0.00041096,120]
[401257167,1768079083974,-2000.0,0.00041096,120]
[401257168,1768079084024,-2000.0,0.00041096,120]
[401257169,1768079084079,-2000.0,0.00041096,120]
[401257170,1768079084134,-2000.0,0.00041096,120]
[401257171,1768079084198,-2000.0,0.00041096,120]
[401257172,1768079084261,-2037.0,0.00041096,120]
[401257173,1768079084319,-2000.0,0.00041096,120]
[401257174,1768079084375,-2000.0,0.00041096,120]
[401257175,1768079084430,-2028.0,0.00041096,60]
[401257176,1768079084488,-1100.0,0.00041096,120]
[401257177,1768079084545,-907.5,0.00041096,54]
[401257178,1768079084601,-1024.5,0.00041096,92]
[401257179,1768079084656,-953.0,0.00041096,112]
[401257180,1768079084711,-843.5,0.00041096,100]
[401257181,1768079084762,-1243.0,0.00041096,98]
[401257182,1768079084815,-1226.0,0.00041096,109]
[401257183,1768079084868,-1103.0,0.00041096,60]
[401257184,1768079084926,-908.5,0.00041096,112]
[401257185,1768079084984,-881.0,0.00041096,115]
[401257186,1768079085042,-349.97301141,0.00041096,101]
[401257187,1768079085105,-1131.0,0.00041096,71]
[401257188,1768079085163,-290.89460229,0.00041096,71]
[401257189,1768079085219,-363.2,0.00041096,67]
[401257190,1768079085279,-970.5,0.00041096,71]
[401257191,1768079085336,-204.28000001,0.00041096,103]
[401257192,1768079085396,-864.0,0.00041096,60]
[401257193,1768079085454,-382.81446022,0.00041096,102]
[401257194,1768079085827,-472.2,0.00041096,51]
[401257195,1768079085883,-495.73339609,0.00041097,30]
[401257196,1768079085937,-499.99999901,0.000411,120]
[401257197,1768079085988,-332.76284773,0.000411,120]
[401257198,1768079086040,-2165.66,0.000411,60]
[401257199,1768079086095,-1030.88979068,0.000411,120]
[401257200,1768079086150,-1030.88979068,0.000411,120]
[401257201,1768079086203,-1030.88979068,0.000411,120]
[401257202,1768079086255,-1030.88979068,0.000411,120]
[401257203,1768079086306,-1030.88979068,0.000411,120]
[401257204,1768079086362,-1030.88979068,0.000411,120]
[401257205,1768079086420,-1030.88979068,0.000411,120]
[401257206,1768079086481,-1030.88979068,0.000411,120]
[401257207,1768079086534,-1030.88979068,0.000411,120]
[401257208,1768079086586,-1030.88979068,0.000411,120]
[401257209,1768079086640,-1030.88979068,0.000411,120]
[401257210,1768079086690,-1030.88979068,0.000411,120]
[401257211,1768079086741,-1030.88979068,0.000411,120]
[401257212,1768079086793,-1030.88979068,0.000411,120]
[401257213,1768079086850,-1030.88979068,0.000411,120]
[401257214,1768079086905,-1030.88979068,0.000411,120]
[401257215,1768079086961,-1030.88979068,0.000411,120]
[401257216,1768079087015,-1030.88979068,0.000411,120]
[401257217,1768079087069,-1030.88979068,0.000411,120]
[401257218,1768079087122,-1030.88,0.000411,120]
[401257219,1768079087175,-2405.40951158,0.000411,120]
[401257220,1768079087230,-2405.40951158,0.000411,120]
[401257221,1768079087284,-2405.40951158,0.000411,120]
[401257222,1768079087339,-2405.40951158,0.000411,120]
[401257223,1768079087394,-2405.40951158,0.000411,120]
[401257224,1768079087451,-2405.40951158,0.000411,120]
[401257225,1768079087509,-2405.40951158,0.000411,120]
[401257226,1768079087566,-2405.40951158,0.000411,120]
[401257227,1768079087623,-2405.40951158,0.000411,120]
[401257228,1768079087678,-2405.40951158,0.000411,120]
[401257229,1768079087732,-2405.40951158,0.000411,120]
[401257230,1768079087785,-2405.40951158,0.000411,120]
[401257231,1768079087839,-2405.40951158,0.000411,120]
[401257232,1768079087897,-2405.40951158,0.000411,120]
[401257233,1768079087955,-2405.40951158,0.000411,120]
[401257234,1768079088014,-2405.40951158,0.000411,120]
[401257235,1768079088073,-2405.40951158,0.000411,120]
[401257236,1768079088138,-2405.40951158,0.000411,120]
[401257237,1768079088212,-2405.40951158,0.000411,120]
[401257238,1768079088276,-2405.4,0.000411,120]
[401257239,1768079088338,-179.87256008,0.000411,120]
[401257240,1768079088399,-179.87256008,0.000411,120]
[401257241,1768079088461,-179.87256008,0.000411,120]
[401257242,1768079088518,-179.87,0.000411,120]
[401257243,1768079088572,-152.61914189,0.000411,120]
[401257244,1768079088627,-152.61914189,0.000411,120]
[401257245,1768079088687,-152.61914189,0.000411,120]
[401257246,1768079088748,-152.61914189,0.000411,120]
[401257247,1768079088808,-152.61914189,0.000411,120]
[401257248,1768079088866,-152.61914189,0.000411,120]
[401257249,1768079088925,-152.61914189,0.000411,120]
[401257250,1768079088983,-152.61914189,0.000411,120]
[401257251,1768079089039,-152.61914189,0.000411,120]
[401257252,1768079089097,-152.61914189,0.000411,120]
[401257253,1768079089156,-152.61,0.000411,120]
[401257254,1768079089221,-161.56664865,0.000411,120]
[401257255,1768079089280,-161.56664865,0.000411,120]
[401257256,1768079089337,-161.56664865,0.000411,120]
[401257257,1768079089397,-161.56664865,0.000411,120]
[401257258,1768079089455,-161.56664865,0.000411,120]
[401257259,1768079089510,-161.56664865,0.000411,120]
[401257260,1768079089564,-161.56664865,0.000411,120]
[401257261,1768079089616,-161.56,0.000411,120]
[401257262,1768079089666,-150.79553874,0.000411,120]
[401257263,1768079089715,-150.79553874,0.000411,120]
[401257264,1768079089762,-150.79553874,0.000411,120]
[401257265,1768079089807,-150.79553874,0.000411,120]
[401257266,1768079089854,-150.79553874,0.000411,120]
[401257267,1768079089904,-150.79553874,0.000411,120]
[401257268,1768079089952,-150.79553874,0.000411,120]
[401257269,1768079090001,-150.79553874,0.000411,120]
[401257270,1768079090053,-150.79553874,0.000411,120]
[401257271,1768079090105,-150.79553874,0.000411,120]
[401257272,1768079090156,-150.79553874,0.000411,120]
[401257273,1768079090206,-150.79553874,0.000411,120]
[401257274,1768079090256,-150.79553874,0.000411,120]
[401257275,1768079090304,-150.79553874,0.000411,120]
[401257276,1768079090354,-150.79553874,0.000411,120]
[401257277,1768079090401,-150.79553874,0.000411,120]
[401257278,1768079090447,-150.79553874,0.000411,120]
[401257279,1768079090494,-150.79553874,0.000411,120]
[401257280,1768079090539,-150.79553874,0.000411,120]
[401257281,1768079090583,-150.79,0.000411,120]
[401257282,1768079090626,-153.53,0.0004113,120]
[401257283,1768079090670,-160.38,0.0004114,120]
[401257284,1768079090713,-495.73339609,0.00041141,30]
[401257285,1768079090758,-153.76,0.00041162,120]
[401257286,1768079090808,-157.17,0.00041165,120]
[401257287,1768079090856,-156.49,0.00041177,120]
[401257288,1768079091072,-495.73339609,0.00041184,30]
[401257289,1768079091128,-152.0,0.000412,120]
[401257290,1768079091186,-495.73339609,0.00041228,30]
[401257291,1768079091243,-153.53,0.0004123,120]
[401257292,1768079091297,-2036.98,0.00041233,30]
[401257293,1768079091350,-2036.98,0.00041233,30]
[401257294,1768079091403,-160.38,0.0004124,120]
[401257295,1768079091453,-157.21653078,0.00041265,120]
[401257296,1768079091503,-495.73339609,0.00041272,30]
[401257297,1768079091554,-156.49,0.00041277,120]
[401257298,1768079091604,-150.0,0.00041283,120]
[401257299,1768079091655,-1019.71624,0.00041288,30]
[401257300,1768079091707,-1000.0,0.000413,120]
[401257301,1768079091759,-152.0,0.000413,120]
[401257302,1768079091812,-495.73339609,0.00041316,30]
[401257303,1768079091865,-153.53,0.0004133,120]
[401257304,1768079091917,-150.0,0.00041331,120]
[401257305,1768079091968,-160.38,0.0004134,120]
[401257306,1768079092020,-495.73339609,0.0004136,30]
[401257307,1768079092075,-153.76,0.00041362,120]
[401257308,1768079092129,-150.0,0.00041365,30]
[401257309,1768079092187,-150.0,0.00041365,30]
[401257310,1768079092239,-150.0,0.00041365,30]
[401257311,1768079092288,-150.0,0.00041365,30]
[401257312,1768079092337,-1000.0,0.0004137,30]
[401257313,1768079092392,-156.49,0.00041377,120]
[401257314,1768079092444,-310.92453819,0.00041386,70]
[401257315,1768079092498,-400.0,0.000414,120]
[401257316,1768079092551,-346.01,0.00041402,30]
[401257317,1768079092604,-495.73339609,0.00041403,30]
[401257318,1768079092654,-746.16310896,0.0004142,120]
[401257319,1768079092702,-153.53,0.0004143,120]
[401257320,1768079092749,-160.38,0.0004144,120]
[401257321,1768079092791,-495.73339609,0.00041447,30]
[401257322,1768079092835,-2200.0,0.00041457,60]
[401257323,1768079092885,-153.76,0.00041462,120]
[401257324,1768079092937,-153.76,0.00041462,120]
[401257325,1768079092991,-156.49,0.00041477,120]
[401257326,1768079093046,-1019.71624,0.00041488,30]
[401257327,1768079093101,-495.73339609,0.00041491,30]
[401257328,1768079093157,-1000.0,0.000415,120]
[401257329,1768079093213,-1000.0,0.000415,120]
[401257330,1768079093273,-1000.0,0.000415,120]
[401257331,1768079093335,-2036.98,0.00041507,30]
[401257332,1768079093389,-2036.98,0.00041507,30]
[401257333,1768079093446,-150.0,0.00041511,120]
[401257334,1768079093502,-495.73339609,0.00041535,30]
[401257335,1768079093559,-160.38,0.0004154,120]
[401257336,1768079093618,-153.76,0.00041562,120]
[401257337,1768079093676,-156.49,0.00041577,120]
[401257338,1768079093731,-495.73339609,0.00041579,30]
[401257339,1768079093785,-153.53,0.00041595,120]
[401257340,1768079093842,-3209.9077983,0.000416,120]
[401257341,1768079093894,-26372.23108917,0.000416,30]
[401257342,1768079093945,-495.73339609,0.00041622,30]
[401257343,1768079093996,-160.45563001,0.0004164,120]
[401257344,1768079094048,-3000.0,0.00041641,60]
[401257345,1768079094098,-1300.0,0.00041641,60]
[401257346,1768079094153,-1000.0,0.00041644,30]
[401257347,1768079094210,-153.76,0.00041662,120]
[401257348,1768079094271,-153.76,0.00041662,120]
[401257349,1768079094332,-495.73339609,0.00041666,30]
[401257350,1768079094394,-156.49,0.00041677,120]
[401257351,1768079094453,-1019.71624,0.00041688,30]
[401257352,1768079094510,-153.60988915,0.00041695,120]
[401257353,1768079094567,-495.73339609,0.0004171,30]
[401257354,1768079094622,-495.73339609,0.00041754,30]
[401257355,1768079094674,-503.44,0.0004176,120]
[401257356,1768079094725,-153.76,0.00041762,120]
[401257357,1768079094772,-156.49,0.00041777,120]
[401257358,1768079094818,-495.73339609,0.00041798,30]
[401257359,1768079094868,-500.0,0.00041798,40]
[401257360,1768079094920,-500.0,0.00041798,50]
[401257361,1768079094976,-500.0,0.00041798,50]
[401257362,1768079095032,-3328.75310797,0.000418,120]
[401257363,1768079095087,-495.73339609,0.00041842,30]
[401257364,1768079095147,-153.76,0.00041862,120]
[401257365,1768079095209,-153.76,0.00041862,120]
[401257366,1768079095274,-156.49,0.00041877,120]
[401257367,1768079095336,-320.31090661,0.0004188,120]
[401257368,1768079095396,-495.73339609,0.00041885,30]
[401257369,1768079095455,-1019.71624,0.00041888,30]
[401257370,1768079095511,-2000.0,0.000419,60]
[401257371,1768079095566,-5000.0,0.000419,120]
[401257372,1768079095622,-152.0,0.000419,120]
[401257373,1768079095677,-1000.0,0.00041918,30]
[401257374,1768079095729,-495.73339609,0.00041929,30]
[401257375,1768079095779,-169.0,0.0004196,90]
[401257376,1768079095832,-153.76,0.00041962,120]
[401257377,1768079095885,-153.76,0.00041962,120]
[401257378,1768079095936,-495.73339609,0.00041973,30]
[401257379,1768079095992,-156.59766052,0.00041977,120]
[401257380,1768079096046,-170.10299078,0.0004198,120]
[401257381,1768079096102,-1614.84191918,0.00041999,120]
[401257382,1768079096159,-50000.0,0.00042,42]
[401257383,1768079096402,-200.0,0.00042,120]
[401257384,1768079096460,-964.92708377,0.00042,120]
[401257385,1768079096519,-1000.0,0.00042,120]
[401257386,1768079096593,-625.0,0.00042,120]
[401257387,1768079096650,-150.0,0.00042,120]
[401257388,1768079096707,-500.0,0.00042,60]
[401257389,1768079096763,-5021.37253354,0.00042,120]
[401257390,1768079096813,-3000.0,0.00042,120]
[401257391,1768079096862,-125000.0,0.00042,30]
[401257392,1768079096912,-500.0,0.00042,120]
[401257393,1768079096965,-500.0,0.00042,120]
[401257394,1768079097015,-55132.87180304,0.00042,120]
[401257395,1768079097070,-47872.5577279,0.00042,30]
[401257396,1768079097122,-14656.52752027,0.00042,120]
[401257397,1768079097175,-175.05868746,0.00042,60]
[401257398,1768079097233,-164.68982017,0.00042,120]
[401257399,1768079097293,-1000.0,0.00042,120]
[401257400,1768079097350,-21224.08484064,0.00042,60]
[401257401,1768079097406,-965.08106206,0.00042,120]
[401257402,1768079097463,-895.98164842,0.00042,120]
[401257403,1768079097520,-507.37671782,0.00042,120]
[401257404,1768079097576,-643.80703645,0.00042,30]
[401257405,1768079097631,-199.70393721,0.00042,30]
[401257406,1768079097691,-152.0,0.00042,120]
[401257407,1768079097756,-500.0,0.00042,60]
[401257408,1768079097809,-1594.0,0.00042,30]
[401257409,1768079097862,-57926.21594203,0.00042,30]
[401257410,1768079097912,-21661.070001,0.00042,30]
[401257411,1768079097962,-150.0,0.00042,120]
[401257412,1768079098012,-69707.18059648,0.00042,31]
[401257413,1768079098061,-5492.68,0.00042,120]
[401257414,1768079098112,-253.0,0.00042,37]
[401257415,1768079098168,-2200.0,0.00042005,60]
[401257416,1768079098225,-256.56374437,0.0004201,30]
[401257417,1768079098280,-495.73339609,0.00042017,30]
[401257418,1768079098337,-150.0,0.00042019,120]
[401257419,1768079098393,-500.0,0.00042055,30]
[401257420,1768079098449,-500.0,0.00042055,30]
[401257421,1768079098505,-500.0,0.00042055,30]
[401257422,1768079098556,-500.0,0.00042055,30]
[401257423,1768079098610,-500.0,0.00042055,30]
[401257424,1768079098661,-500.0,0.00042055,30]
[401257425,1768079098713,-500.0,0.00042055,30]
[401257426,1768079098767,-500.0,0.00042055,30]
[401257427,1768079098821,-500.0,0.00042055,30]
[401257428,1768079098877,-500.0,0.00042055,30]
[401257429,1768079098931,-170.95424451,0.00042055,30]
[401257430,1768079098987,-495.73339609,0.00042061,30]
[401257431,1768079099041,-153.76,0.00042062,120]
[401257432,1768079099102,-153.76,0.00042062,120]
[401257433,1768079099159,-150.0,0.00042077,30]
[401257434,1768079099220,-150.0,0.00042077,30]
[401257435,1768079099279,-150.0,0.00042077,30]
[401257436,1768079099337,-150.0,0.00042077,30]
[401257437,1768079099396,-150.0,0.00042077,30]
[401257438,1768079099457,-150.0,0.00042077,30]
[401257439,1768079099515,-176.4,0.00042077,30]
[401257440,1768079099571,-200000.0,0.000421,120]
[401257441,1768079099625,-331.02964552,0.000421,120]
[401257442,1768079099677,-495.73339609,0.00042104,30]
[401257443,1768079099727,-495.73339609,0.00042148,30]
[401257444,1768079099778,-153.76,0.00042162,120]
[401257445,1768079099826,-200.0,0.00042168,120]
[401257446,1768079099873,-500.0,0.0004218,30]
[401257447,1768079099921,-500.0,0.0004218,30]
[401257448,1768079099975,-500.0,0.0004218,30]
[401257449,1768079100024,-500.0,0.0004218,30]
[401257450,1768079100083,-500.0,0.0004218,30]
[401257451,1768079100139,-500.0,0.0004218,30]
[401257452,1768079100204,-500.0,0.0004218,30]
[401257453,1768079100267,-500.0,0.0004218,30]
[401257454,1768079100325,-945.0,0.0004218,30]
[401257455,1768079100383,-3000.0,0.00042189,60]
[401257456,1768079100443,-1300.0,0.00042189,60]
[401257457,1768079100503,-2323.59,0.00042191,120]
[401257458,1768079100559,-1000.0,0.00042192,30]
[401257459,1768079100617,-495.73339609,0.00042192,30]
[401257460,1768079100672,-200.0,0.000422,120]
[401257461,1768079100722,-200.0,0.000422,120]
[401257462,1768079100769,-200.0,0.000422,120]
[401257463,1768079100817,-200.0,0.000422,120]
[401257464,1768079100864,-237.78616035,0.000422,120]
[401257465,1768079100912,-495.73339609,0.00042236,30]
[401257466,1768079100960,-153.76,0.00042262,120]
[401257467,1768079101009,-495.73339609,0.0004228,30]
[401257468,1768079101064,-495.73339609,0.00042323,30]
[401257469,1768079101120,-200.0,0.00042358,120]
[401257470,1768079101179,-153.76,0.00042362,120]
[401257471,1768079101238,-495.73339609,0.00042367,30]
[401257472,1768079101295,-416.56344955,0.00042375,120]
[401257473,1768079101366,-20139.51746605,0.00042397,30]
[401257474,1768079101431,-495.73339609,0.00042411,30]
[401257475,1768079101493,-495.73339609,0.00042455,30]
[401257476,1768079101552,-153.76,0.00042462,120]
[401257477,1768079101840,-1000.0,0.00042466,30]
[401257478,1768079101894,-500.0,0.00042466,120]
[401257479,1768079101948,-503.44,0.0004248,120]
[401257480,1768079102003,-495.73339609,0.00042499,30]
[401257481,1768079102060,-1000.0,0.000425,120]
[401257482,1768079102117,-3000.0,0.000425,120]
[401257483,1768079102175,-2998.10994509,0.000425,120]
[401257484,1768079102233,-1727.63553902,0.000425,120]
[401257485,1768079102291,-152.0,0.000425,120]
[401257486,1768079102352,-2500.0,0.000425,30]
[401257487,1768079102408,-9381.82411606,0.000425,30]
[401257488,1768079102468,-500.0,0.00042521,120]
[401257489,1768079102527,-495.73339609,0.00042543,30]
[401257490,1768079102587,-2200.0,0.00042553,60]
[401257491,1768079102652,-153.76,0.00042562,120]
[401257492,1768079102713,-500.0,0.00042576,120]
[401257493,1768079102774,-495.73339609,0.00042586,30]
[401257494,1768079102838,-495.73339609,0.0004263,30]
[401257495,1768079102897,-500.0,0.0004263,120]
[401257496,1768079102959,-153.76,0.00042662,120]
[401257497,1768079103019,-495.73339609,0.00042674,30]
[401257498,1768079103092,-500.0,0.00042685,120]
[401257499,1768079103158,-877.71053254,0.000427,90]
[401257500,1768079103223,-312.68078682,0.000427,120]
[401257501,1768079103290,-219.99753844,0.000427,30]
[401257502,1768079103356,-152.0,0.000427,120]
[401257503,1768079103421,-495.73339609,0.00042718,30]